[Event "1000GM Summer-II Dual Schev-A 2024"]
[Site "San Jose"]
[Date "2024.07.02"]
[Round "1.1"]
[White "Jimenez Garcia, Emmanuel"]
[Black "Garduno Huerta, Joshua Emiliano"]
[Result "1/2-1/2"]
[ECO "D10"]
[WhiteElo "2370"]
[BlackElo "1967"]
[Annotator "RC"]
[PlyCount "75"]
[EventDate "2024.06.29"]
[EventType "schev"]
[EventCountry "USA"]
[SourceTitle "playchess.com"]
[Source "ChessBase"]
[SourceQuality "1"]
[TimeControl "5400+30"]

1. c4 {[%emt 0:00:13]} c6 {[%emt 0:05:13]} 2. d4 {[%emt 0:01:19]} d5 {[%emt 0:00:12]} 3. cxd5 {[%emt 0:00:11]} cxd5 {[%emt 0:00:07]} 4. Bf4 {[%emt 0:00:07]} Nf6 {[%emt 0:02:30]} 5. e3 {[%emt 0:00:21]} Nc6 {[%emt 0:02:03]} 6. Nc3 {[%emt 0:03:02]} Bf5 {[%emt 0:01:30]} 7. Qb3 {[%emt 0:00:45]} Na5 {[%emt 0:01:19]} 8. Qa4+ {[%emt 0:00:07]} Bd7 {[%emt 0:02:53]} 9. Qc2 {[%emt 0:00:04]} Rc8 {[%emt 0:04:38]} 10. Bd3 {[%emt 0:03:33]} e6 {[%emt 0:02:24]} 11. Nf3 {[%emt 0:01:09]} Bb4 {[%emt 0:11:53]} 12. O-O {[%emt 0:00:15]} O-O {[%emt 0:01:59]} 13. Rfc1 {[%emt 0:03:50]} Bxc3 {[%emt 0:01:13]} 14. bxc3 {[%emt 0:00:03]} Nc4 {[%emt 0:10:01]} 15. Bg5 {[%emt 0:08:47]} h6 {[%emt 0:02:03]} 16. Bh4 {[%emt 0:00:03]} Qa5 {[%emt 0:14:20]} 17. Bxc4 {[%emt 0:51:11]} Rxc4 {[%emt 0:02:31]} 18. Ne5 {[%emt 0:00:07]} Rc7 {[%emt 0:00:16]} 19. f3 {[%emt 0:02:10]} Rfc8 {[%emt 0:11:50]} 20. Be1 {[%emt 0:02:15]} Qa3 {[%emt 0:05:52]} 21. Qb3 {[%emt 0:10:10]} Qa6 {[%emt 0:01:41]} 22. Rab1 {[%emt 0:07:31]} Ba4 {[%emt 0:01:39]} 23. Qb4 {[%emt 0:00:54]} Nd7 {[%emt 0:02:08]} 24. Ng4 {[%emt 0:00:45]} Nb6 {[%emt 0:05:36]} 25. Bg3 {[%emt 0:00:09]} Rc4 {[%emt 0:03:30]} 26. Qe7 {[%emt 0:00:24]} Nd7 {[%emt 0:02:09]} 27. Be1 {[%emt 0:02:45]} R4c7 {[%emt 0:01:06]} 28. Qh4 {[%emt 0:00:37]} Qe2 {[%emt 0:00:39]} 29. Qf2 {[%emt 0:01:22]} Qxf2+ {[%emt 0:00:21]} 30. Nxf2 {[%emt 0:00:02]} Nb6 {[%emt 0:00:45]} 31. Nd3 {[%emt 0:00:32]} Nc4 {[%emt 0:00:54]} 32. e4 {[%emt 0:00:51]} Bc6 {[%emt 0:00:24]} 33. Nc5 {[%emt 0:00:43]} b6 {[%emt 0:00:43]} 34. Na6 {[%emt 0:00:10]} Rd7 {[%emt 0:00:07]} 35. e5 {[%emt 0:00:40]} Bb7 {[%emt 0:00:44]} 36. Nb4 {[%emt 0:00:01]} Rdc7 {[%emt 0:00:10]} 37. Nc2 {[%emt 0:00:41]} Na5 {[%emt 0:00:26]} 38. Ne3 {[%emt 0:00:31]} 1/2-1/2

[Event "1000GM Summer-II Dual Schev-A 2024"]
[Site "San Jose"]
[Date "2024.07.02"]
[Round "1.2"]
[White "Dominguez Aguilar, Guillermo"]
[Black "Arutla, Aditya"]
[Result "0-1"]
[ECO "C47"]
[WhiteElo "2281"]
[BlackElo "2243"]
[Annotator "TA"]
[PlyCount "74"]
[EventDate "2024.06.29"]
[EventType "schev"]
[EventCountry "USA"]
[SourceTitle "playchess.com"]
[Source "ChessBase"]
[SourceQuality "1"]
[TimeControl "5400+30"]

{[%evp 14,74,2,0,12,-11,22,16,21,-5,16,-10,-20,-17,-7,-14,0,0,0,0,0,0,0,0,0,0,0,0,0,-13,-2,-29,-29,-24,-6,-6,0,-45,-36,-48,-44,-105,-105,-107,-100,-122,-71,-150,-153,-150,-153,-182,-149,-195,-181,-187,-184,-188,-43,-29993,-29994,-29996,-29997]} 1. e4 {[%emt 0:00:58]} e5 {[%emt 0:00:09]} 2. Nf3 {[%emt 0:00:35]} Nc6 {[%emt 0:00:04]} 3. d4 {[%emt 0:00:12]} exd4 {[%emt 0:00:08]} 4. Nxd4 {[%emt 0:00:06]} Nf6 {[%emt 0:00:06]} 5. Nc3 {[%emt 0:00:21]} Bb4 {[%emt 0:00:06]} 6. Nxc6 {[%emt 0:00:17]} bxc6 {[%emt 0:00:04]} 7. Bd3 {[%emt 0:00:09]} d5 {[%emt 0:00:05]} 8. exd5 {[%emt 0:01:16]} O-O {[%emt 0:00:07]} 9. O-O {[%emt 0:00:09]} Bg4 {[%emt 0:00:18]} 10. f3 {[%emt 0:00:36]} Bh5 {[%emt 0:00:12] The position is equal.} 11. Ne2 {[%emt 0:11:29]} Nxd5 {[%emt 0:02:33]} 12. c4 {[%emt 0:06:27]} Bc5+ {[%emt 0:02:17]} 13. Kh1 {[%emt 0:00:07]} Nb4 {[%emt 0:03:44]} 14. Nf4 {[%emt 0:01:51]} Nxd3 {[%emt 1:27:37]} 15. Nxd3 {[%emt 0:09:58]} Bd4 {[%emt 0:00:00]} 16. Nf4 {[%emt 0:06:28]} Bg6 {[%emt 0:00:00]} 17. Nxg6 {[%emt 0:00:24]} hxg6 {[%emt 0:00:00]} 18. Rb1 {[%emt 0:00:33]} Qf6 {[%emt 0:00:00]} 19. Bg5 {[%emt 0:04:57]} Qxg5 {[%emt 0:00:00]} 20. Qxd4 {[%emt 0:00:29]} Rfd8 {[%emt 0:00:00][%cal Bf8d8,Bd8d2,Bd2c2][%mdl 32] Prevents Qd7.} 21. Qe4 {[%emt 0:03:27]} Rd2 {[%emt 0:00:00][%csl Gd2][%cal Rg5g2]} 22. f4 {[%emt 0:00:13]} Qf6 {[%emt 0:00:00][%cal Oa8b8]} 23. f5 {[%emt 0:04:14]} g5 {[%emt 0:00:00][%cal Oa8b8]} (23... Rxb2 24. Rxb2 Qxb2 25. fxg6 (25. Qxc6 Rf8 $11) 25... fxg6 26. Qxc6 $14 (26. Qxg6 Qe2 $11)) 24. Qe3 {[%emt 0:11:21]} Rc2 {[%emt 0:00:00]} 25. Qb3 {[%emt 0:05:32]} Re2 $36 {[%emt 0:00:00][%mdl 2048] Black has some pressure.} 26. Qb7 {[%emt 0:04:27]} Rd8 {[%emt 0:00:00]} 27. Qxc7 {[%emt 0:07:37]} (27. Qxa7 $15 Rdd2 (27... Rxb2 28. Rxb2 Qxb2 29. Qxc7 $11) 28. Qb8+ Kh7 29. Qb3) 27... Rdd2 $17 {[%emt 0:00:00]} (27... Rxb2 $2 28. Rxb2 (28. Qxa7 Rxb1 29. Rxb1 Qxf5 $17) 28... Qd4 29. Rb7 $18 (29. Rb8 Rxb8 30. Qxb8+ Kh7 $18)) 28. Rg1 {[%emt 0:01:40]} Qxf5 {[%emt 0:00:00][%cal Oe2g2] Strongly threatening ...Rxg2! Active counter play!} 29. Rbf1 {[%emt 0:00:52] [#]} Qe6 {[%emt 0:00:00]} (29... Qd7 $142 $1 {[%cal Rd7c7]} 30. Qxd7 Rxd7) 30. Qb8+ {[%emt 0:02:12]} ({White should try} 30. Qxa7 f6 (30... Rxb2 31. a4 $15) (30... Qxc4 31. Rc1 $17) 31. b3) 30... Kh7 {[%emt 0:00:00]} 31. Qxa7 {[%emt 0:00:22]} f6 {[%emt 0:00:00]} ({Not} 31... Rxb2 32. Rxf7 Qg6 33. Rf3 $11) 32. Qc5 {[%emt 0:05:06]} Rxb2 {[%emt 0:00:00]} 33. a4 {[%emt 0:00:55]} (33. Qf5+ $17 Qxf5 34. Rxf5) 33... Kg6 $19 {[%emt 0:00:00] Threatens to win with ...Qe4.} 34. Qd4 {[%emt 0:01:54]} Rbd2 {[%emt 0:00:00]} 35. Qc3 {[%emt 0:01:23][%cal Of1e1]} Qg4 {[%emt 0:00:00]} (35... Qe4 $19 {[%cal Re2g2]} 36. Rf3 Ra2) 36. h3 $2 {[%emt 0:00:24][%mdl 8192] [#]} (36. Re1 $15) 36... Rxg2 $1 {[%emt 0:00:00][%csl Gd2][%cal Rg2h2]} 37. Qd3+ {[%emt 0:01:18]} (37. Rxf6+ gxf6) 37... Kh6 {[%emt 0:00:00] Weighted Error Value: White=0.28 (precise) /Black=0.16 (very precise) .  Loses game:     	White=1     	---        Mistake:       	White=3     	Black=2      Inaccurate:     	White=4     	Black=1      OK:         	White=11    	Black=14     Best:        	White=1     	Black=3      Strong:       	---       	Black=1} (37... f5 38. Qd6+ Rxd6 39. hxg4 $15) 0-1

[Event "1000GM Summer-II Dual Schev-A 2024"]
[Site "San Jose"]
[Date "2024.07.02"]
[Round "1.3"]
[White "Figueredo Losada, Leonel"]
[Black "Solis Castro, Angel Alejan"]
[Result "1-0"]
[ECO "A31"]
[WhiteElo "2314"]
[BlackElo "2003"]
[Annotator "TA"]
[PlyCount "127"]
[EventDate "2024.06.29"]
[EventType "schev"]
[EventCountry "USA"]
[SourceTitle "playchess.com"]
[Source "ChessBase"]
[SourceQuality "1"]
[TimeControl "5400+30"]

{[%evp 62,127,294,149,157,0,0,-291,-191,-244,-265,-490,-33,-495,-362,-703,-41,-44,-44,-43,-18,-25,-13,-76,-77,-80,-63,-97,-47,-122,-141,-153,-2,-27,8,0,0,0,0,-75,0,0,241,246,255,255,276,236,1036,-30,1202,1054,12793,4847,29945,29946,12803,9686,29989,29990,29992,29993,29994,29995,29996,29996,29997,29998]} 1. Nf3 {[%emt 0:00:34]} Nf6 {[%emt 0:01:48]} 2. c4 {[%emt 0:00:17]} e6 {[%emt 0:01:44]} 3. Nc3 {[%emt 0:01:50]} c5 {[%emt 0:02:26]} 4. e4 {[%emt 0:00:31]} d6 {[%emt 0:02:28]} 5. d4 {[%emt 0:00:57]} cxd4 {[%emt 0:00:03]} 6. Nxd4 {[%emt 0:00:04]} b6 {[%emt 0:02:20]} 7. Be3 {[%emt 0:04:26]} Bb7 {[%emt 0:01:40]} 8. f3 {[%emt 0:00:10]} Nbd7 {[%emt 0:02:17] A31: Symmetrical English: 2 Nf3 Nf6 3 d4.} 9. Qd2 {[%emt 0:01:56]} a6 {[%emt 0:02:01]} 10. g4 {[%emt 0:04:55]} Ne5 {[%emt 0:05:15]} 11. g5 {[%emt 0:00:41]} Nfd7 {[%emt 0:00:46]} 12. Be2 {[%emt 0:03:45]} Rc8 {[%emt 0:02:33]} 13. b3 {[%emt 0:00:03]} Be7 {[%emt 0:02:41]} 14. h4 {[%emt 0:04:34]} Nc5 {[%emt 0:15:25]} 15. Kf2 {[%emt 0:09:13]} O-O $146 {[%emt 0:03:31]} ({Predecessor:} 15... Nc6 16. Nxc6 Bxc6 17. b4 Nd7 18. f4 {½-½ Mariotti,S (2350)-Shytaj,L (2341) Montecatini Terme 12th 2005 (6)}) 16. Kg2 {[%emt 0:10:00]} Re8 {[%emt 0:09:36]} 17. Rac1 {[%emt 0:07:01]} Bf8 {[%emt 0:04:34]} 18. Rhd1 {[%emt 0:03:13]} Qc7 {[%emt 0:01:59]} 19. Qe1 {[%emt 0:04:45]} Qb8 {[%emt 0:06:18]} 20. Qf2 {[%emt 0:00:28]} Rc7 {[%emt 0:02:22]} 21. Kg1 {[%emt 0:02:45]} Rec8 {[%emt 0:02:00]} 22. Qe1 {[%emt 0:09:22]} Ncd7 {[%emt 0:02:12]} 23. h5 {[%emt 0:05:20]} Nc6 {[%emt 0:05:38]} 24. g6 {[%emt 0:01:04]} Be7 {[%emt 0:00:59]} 25. gxf7+ {[%emt 0:03:13]} Kxf7 {[%emt 0:00:02]} 26. Qg3 {[%emt 0:00:45]} Nf6 {[%emt 0:01:47]} 27. f4 {[%emt 0:01:27]} Nxd4 {[%emt 0:01:58]} 28. Bxd4 {[%emt 0:00:03]} b5 {[%emt 0:00:37]} 29. e5 {[%emt 0:02:22]} b4 {[%emt 0:01:43]} 30. Na4 {[%emt 0:04:29]} Ne4 {[%emt 0:00:20]} 31. Qg4 {[%emt 0:00:03]} d5 $2 {[%emt 0:02:14]} (31... dxe5 $16 {is a better defense.} 32. Bxe5 Nf6) 32. f5 {[%emt 0:01:58]} (32. Nb6 $18) 32... exf5 $16 {[%emt 0:01:50]} 33. Qxf5+ $2 {[%emt 0:00:07]} ({White has to play} 33. Rf1 $1 $16 {[%cal Rf1f5]} Kg8 34. Rxf5 (34. Qxf5 Ng3 $14) 34... dxc4 35. e6 (35. Bxc4+ Rxc4 36. bxc4 Rd8 $11)) 33... Kg8 $11 {[%emt 0:00:13]} 34. h6 $2 {[%emt 0:01:49][%mdl 8192]} (34. Nb6 $11 Rf8 35. Qe6+ Kh8 36. Qg4 (36. Nxd5 Bc5 $17) (36. cxd5 $2 Ng5 $19)) 34... Bg5 {[%emt 0:00:41]} 35. Rb1 {[%emt 0:03:50]} (35. Rc2 $142 Rf8 (35... Bxh6 36. Nb6 $17) 36. Qe6+ Kh8 37. Nb6) 35... Rf7 $19 {[%emt 0:01:17]} (35... Bxh6 36. Nb6 Rf8 37. Qe6+ Kh8 38. Rf1) (35... gxh6 36. Bf3) 36. Qg4 $2 {[%emt 0:00:13]} (36. Qh3 Bxh6 (36... gxh6 37. Nb6 $11) 37. Rf1) 36... Bxh6 $2 {[%emt 0:01:17]} (36... Rc6 $19 37. Rf1 Rxf1+ (37... Rxh6 38. Rxf7 Kxf7 39. Qd7+ Kg8 40. Rf1 $11) 38. Rxf1 Rg6 (38... Bxh6 39. Qd7 $11)) 37. cxd5 $2 {[%emt 0:01:46][%mdl 8192]} (37. Nb6 Rc6 38. Rf1 (38. Nxd5 $2 Rg6 $19) (38. Nd7 $2 Qe8 $19) 38... Rg6 39. Rxf7 Rxg4+ (39... Kxf7 $2 40. Rf1+ Kg8 41. Nd7 $19) 40. Bxg4 Kxf7 $19) ({White must play} 37. Rf1 $1 $15 Rcf8 38. Rxf7 Rxf7 39. Rf1 Rxf1+ 40. Bxf1) 37... Bxd5 {[%emt 0:01:17]} 38. Rf1 $2 {[%emt 0:06:10]} (38. Bc4 Bxc4 39. bxc4) 38... Rcf8 $2 {[%emt 0:02:02]} (38... Rc6 $19 39. Rxf7 Rg6) 39. Rxf7 $1 $15 {[%emt 0:00:54]} Rxf7 {[%emt 0:00:01]} 40. Rf1 $1 {[%emt 0:00:20]} Rxf1+ {[%emt 0:01:32]} 41. Bxf1 {[%emt 0:00:03]} Ng5 {[%emt 0:02:36]} 42. Bc4 {[%emt 0:02:08]} (42. Qd7 $1 $11 {remains equal.} Be6 43. Bc4 Bxc4 44. bxc4) 42... Bxc4 $17 {[%emt 0:02:37]} 43. bxc4 {[%emt 0:00:03]} Qd8 {[%emt 0:00:45]} 44. Kf1 {[%emt 0:01:05]} Qe8 {[%emt 0:00:31]} ({Black should play} 44... Nf3 $1 $17 {[%cal Rf3h2] ( -> ...Nh2+)} 45. Qe6+ Kh8) 45. Nb6 {[%emt 0:00:28]} ({Better is} 45. Nc5 $15) 45... Ne6 $17 {[%emt 0:01:01]} 46. Bf2 {[%emt 0:00:16]} Qc6 $2 {[%emt 0:00:29]} (46... a5 $17 {Strongly threatening ...Bg5.} 47. Qe4 a4) 47. Nd5 $11 {[%emt 0:00:32]} Kf7 {[%emt 0:01:23]} 48. Qf5+ {[%emt 0:01:33]} Ke8 {[%emt 0:00:11]} 49. Qh5+ {[%emt 0:00:16]} Kf8 {[%emt 0:00:41]} 50. Qf3+ {[%emt 0:00:41] [#]} (50. Qf5+ $11 Ke8 51. Qh5+ Kf8 52. Qf5+ Ke8) 50... Nf4 {[%emt 0:00:41]} ({Black should try} 50... Bf4 $1 $17 51. Qd3 g6 (51... Bxe5 52. Qe4 $15)) 51. Qe4 $11 {[%emt 0:00:03]} Nxd5 $2 {[%emt 0:01:08]} (51... Qg6 $11 52. Qxg6 Nxg6) 52. cxd5 $18 {[%emt 0:00:05]} Qc1+ {[%emt 0:00:09] [#]} 53. Kg2 $1 {[%emt 0:00:14]} Qf4 {[%emt 0:01:26]} (53... Qg5+ 54. Bg3 Qe7 (54... Qd2+ $2 55. Kh3 $18) 55. e6 $18 (55. Qxh7 Qg5 $18)) 54. Bc5+ {[%emt 0:01:54]} Ke8 $2 {[%emt 0:00:08] [#]} (54... Kf7 55. e6+ (55. Qxb4 Qg5+ 56. Kf1 Qf5+ 57. Kg2 Qg5+ 58. Kf1 Qxe5 $11) 55... Kf6 56. Qd4+ (56. Qxb4 Qg5+ 57. Kf1 Qxd5 $15) 56... Qxd4 57. Bxd4+ Kg6) 55. Qxb4 $2 {[%emt 0:00:41]} (55. Qxf4 $1 $18 {White threatens Qf8+ and mate.} Bxf4 56. e6) 55... Qxb4 $4 {[%emt 0:01:16][%mdl 8192]} (55... Qg5+ $11 56. Kf3 Qf5+ 57. Kg2 Qg6+ 58. Kh1 Qh5+ 59. Kg2 Qg5+ 60. Kf3 Qf5+ 61. Kg2 Qg5+) 56. Bxb4 $18 {[%emt 0:00:26]} Bf4 {[%emt 0:00:19]} 57. e6 {[%emt 0:00:05]} Bc7 {[%emt 0:01:32]} 58. d6 {[%emt 0:00:06]} Bb6 {[%emt 0:00:14]} 59. Kf3 {[%emt 0:00:54]} a5 {[%emt 0:00:24]} 60. Ba3 {[%emt 0:00:05]} Bd4 {[%emt 0:00:58]} 61. Ke4 {[%emt 0:00:10]} Bg1 {[%emt 0:00:33]} 62. Kd5 {[%emt 0:00:10]} h5 {[%emt 0:00:16]} 63. d7+ {[%emt 0:00:20]} Kd8 {[%emt 0:00:12]} 64. Kc6 {[%emt 0:00:03]} 1-0

[Event "1000GM Summer-II Dual Schev-A 2024"]
[Site "San Jose"]
[Date "2024.07.03"]
[Round "2.1"]
[White "Arutla, Aditya"]
[Black "Jimenez Garcia, Emmanuel"]
[Result "0-1"]
[ECO "B11"]
[WhiteElo "2243"]
[BlackElo "2370"]
[Annotator "TA"]
[PlyCount "64"]
[EventDate "2024.06.29"]
[EventType "schev"]
[EventCountry "USA"]
[SourceTitle "playchess.com"]
[Source "ChessBase"]
[SourceQuality "1"]
[TimeControl "5400+30"]

{[%evp 10,64,15,7,31,17,24,0,0,0,1,1,25,0,0,-110,-84,-231,-143,-600,-566,-2052,-2068,-29991,-29992,-29992,-29993,-29993,-29993,-29993,-29994,-29994,-29989,-29989,-29990,-29990,-29991,-29991,-29992,-29992,-29992,-29992,-29993,-29993,-29994,-29994,-29993,-29993,-29994,-29994,-29995,-29995,-29996,-29996,-29993,-29997,-29997]} 1. e4 {[%emt 0:00:04]} c6 {[%emt 0:00:10]} 2. Nf3 {[%emt 0:00:05]} d5 {[%emt 0:00:21]} 3. Nc3 {[%emt 0:00:03]} Bg4 {[%emt 0:00:05]} 4. h3 {[%emt 0:00:04]} Bxf3 {[%emt 0:00:04]} 5. Qxf3 {[%emt 0:00:04]} e6 {[%emt 0:00:05]} 6. Be2 {[%emt 0:00:12]} Bc5 {[%emt 0:00:44]} 7. O-O {[%emt 0:03:40]} Ne7 {[%emt 0:00:29]} 8. Rd1 {[%emt 0:03:32]} d4 {[%emt 0:00:26] The position is equal.} 9. Nb1 {[%emt 0:02:10]} Nd7 {[%emt 0:00:46]} 10. Qg3 {[%emt 0:03:06][%cal Od2d3]} h5 {[%emt 0:08:00]} 11. b4 {[%emt 0:08:53]} Bb6 {[%emt 0:02:41]} 12. Qb3 {[%emt 0:09:27]} (12. d3 $11 {remains equal.}) 12... g5 $17 {[%emt 0:02:42]} 13. c3 {[%emt 0:05:56]} (13. Na3 $17 {keeps fighting.}) 13... Ne5 {[%emt 0:08:32] aiming for ...d3.} 14. Bb2 $2 {[%emt 0:07:22][%mdl 8192]} (14. d3 $17 g4 15. h4) 14... d3 $19 {[%emt 0:01:27]} 15. Bf1 {[%emt 0:00:28] [#]} Bxf2+ $1 {[%emt 0:02:51][%mdl 512]} 16. Kxf2 {[%emt 0:02:00]} (16. Kh1 N7g6) 16... Qb6+ {[%emt 0:00:06] Black mates.} 17. Ke1 {[%emt 0:00:34]} Qg1 {[%emt 0:00:21]} 18. Rc1 {[%emt 0:01:01]} Rh6 {[%emt 0:00:36]} 19. Qd1 {[%emt 0:08:37]} Rf6 {[%emt 0:00:10][%csl Gg1][%cal Rf6f1]} 20. Qe2 {[%emt 0:00:24]} dxe2 {[%emt 0:00:13]} 21. Kxe2 {[%emt 0:00:04]} Rf2+ {[%emt 0:01:16]} 22. Kd1 {[%emt 0:00:06]} Qxf1+ {[%emt 0:00:18]} 23. Kc2 {[%emt 0:00:04]} Qd3+ {[%emt 0:00:10]} 24. Kb3 {[%emt 0:00:02]} a5 {[%emt 0:00:26]} 25. a4 {[%emt 0:00:14]} axb4 {[%emt 0:00:08]} 26. Na3 {[%emt 0:00:14]} bxa3 {[%emt 0:00:11]} 27. Rxa3 {[%emt 0:00:11]} Qc4+ {[%emt 0:00:43]} 28. Kc2 {[%emt 0:00:05] [#]} Rxd2+ $3 {[%emt 0:00:24]} 29. Kxd2 {[%emt 0:00:08]} Qd3+ {[%emt 0:00:15]} 30. Ke1 {[%emt 0:00:04]} Qe3+ {[%emt 0:00:05]} 31. Kd1 {[%emt 0:00:03]} Qxe4 {[%emt 0:00:36][%cal Ra8d8]} 32. Rca1 {[%emt 0:00:16]} Nc4 {[%emt 0:00:10] White got outplayed after the opening.   Weighted Error Value: White=1.20/Black=0.05 (flawless) .  Loses game:     	White=1     	---        Mistake:       	White=2     	---        Inaccurate:     	White=2     	Black=1      OK:         	White=2     	Black=2      Best:        	---       	Black=2} 0-1

[Event "1000GM Summer-II Dual Schev-A 2024"]
[Site "San Jose"]
[Date "2024.07.03"]
[Round "2.2"]
[White "Solis Castro, Angel Alejan"]
[Black "Dominguez Aguilar, Guillermo"]
[Result "0-1"]
[ECO "A08"]
[WhiteElo "2003"]
[BlackElo "2281"]
[Annotator "TA"]
[PlyCount "52"]
[EventDate "2024.06.29"]
[EventType "schev"]
[EventCountry "USA"]
[SourceTitle "playchess.com"]
[Source "ChessBase"]
[SourceQuality "1"]
[TimeControl "5400+30"]

{[%evp 12,52,2,0,0,-15,-14,-60,-35,-56,-58,-52,-41,-68,0,0,-10,-16,-8,-50,-13,-40,-33,-30,-28,-100,-86,-329,-267,-324,-323,-403,-380,-410,-407,-388,-461,-457,-485,-860,-624,-875,-539]} 1. Nf3 {[%emt 0:01:28]} d5 {[%emt 0:00:25]} 2. g3 {[%emt 0:00:50]} Nf6 {[%emt 0:00:14]} 3. Bg2 {[%emt 0:00:33]} c5 {[%emt 0:01:07]} 4. O-O {[%emt 0:00:43]} Nc6 {[%emt 0:00:10]} 5. d3 {[%emt 0:00:22]} Bg4 {[%emt 0:00:36]} 6. Nbd2 {[%emt 0:02:14]} e6 {[%emt 0:01:20]} 7. e4 {[%emt 0:01:36]} Be7 {[%emt 0:00:27]} 8. c3 {[%emt 0:02:38]} O-O {[%emt 0:00:24]} 9. Qe1 {[%emt 0:03:53]} (9. h3 $11 Bh5 10. g4) 9... Rc8 {[%emt 0:03:42] Black is slightly better.} 10. h3 {[%emt 0:01:19]} Bh5 {[%emt 0:00:54]} 11. g4 {[%emt 0:06:17]} Bg6 {[%emt 0:02:16]} 12. Qe2 {[%emt 0:00:49] [#]} c4 {[%emt 0:14:02] Black is more active.} 13. dxc4 $11 {[%emt 0:00:53]} Nxe4 {[%emt 0:00:17]} ({Much worse is} 13... Bxe4 14. Nxe4 Nxe4 15. Bf4 $14) 14. cxd5 {[%emt 0:00:56]} exd5 {[%emt 0:00:50]} 15. Nb3 {[%emt 0:02:31]} Qc7 {[%emt 0:36:11]} 16. Nbd4 {[%emt 0:04:46]} Rfe8 {[%emt 0:04:26]} 17. Be3 {[%emt 0:01:28]} h5 {[%emt 0:03:34]} 18. Nxc6 {[%emt 0:04:55]} (18. Rae1 $11 {remains equal.}) 18... bxc6 $17 {[%emt 0:00:32]} 19. c4 $2 {[%emt 0:00:38] This costs White the game.} (19. Rad1 $17) 19... hxg4 {[%emt 0:00:42]} 20. hxg4 {[%emt 0:00:38] [#]} Ng3 $1 {[%emt 0:01:22][%mdl 512]} 21. fxg3 {[%emt 0:05:00] [#]} (21. Qd2 Nxf1) 21... Bc5 $1 {[%emt 0:00:18][%mdl 512]} 22. Kh2 {[%emt 0:00:15]} Rxe3 {[%emt 0:00:31]} 23. Qf2 {[%emt 0:00:31][%cal Ob2b4]} dxc4 {[%emt 0:03:17]} 24. Rac1 {[%emt 0:06:17] Black is clearly winning.} Bd3 {[%emt 0:01:45] Strongly threatening ...Re5. A strong pair of Bishops.} 25. Rfd1 {[%emt 0:00:59]} (25. Ng5 $142) 25... Bb6 {[%emt 0:02:39]} 26. Qd2 {[%emt 0:02:23]} Re2 {[%emt 0:01:29] Weighted Error Value: White=0.68/Black=0.28 (precise) .  Loses game:     	White=1     	---        Mistake:       	White=3     	Black=1      Inaccurate:     	White=4     	Black=1      OK:         	White=5     	Black=6      Best:        	White=1     	---        Brilliant:      	---       	Black=2} 0-1

[Event "1000GM Summer-II Dual Schev-A 2024"]
[Site "San Jose"]
[Date "2024.07.03"]
[Round "2.3"]
[White "Ganesan, Vikrant"]
[Black "Figueredo Losada, Leonel"]
[Result "0-1"]
[ECO "D27"]
[WhiteElo "2038"]
[BlackElo "2314"]
[Annotator "RC"]
[PlyCount "50"]
[EventDate "2024.06.29"]
[EventType "schev"]
[EventCountry "USA"]
[SourceTitle "playchess.com"]
[Source "ChessBase"]
[SourceQuality "1"]
[TimeControl "5400+30"]

1. d4 {[%emt 0:05:12]} d5 {[%emt 0:01:02]} 2. c4 {[%emt 0:01:30]} dxc4 {[%emt 0:00:10]} 3. Nf3 {[%emt 0:00:04]} Nf6 {[%emt 0:00:04]} 4. e3 {[%emt 0:00:05]} a6 {[%emt 0:01:44]} 5. Bxc4 {[%emt 0:01:53]} e6 {[%emt 0:00:04]} 6. O-O {[%emt 0:00:17]} c5 {[%emt 0:03:34]} 7. dxc5 {[%emt 0:00:07]} Bxc5 {[%emt 0:00:15]} 8. Qxd8+ {[%emt 0:00:27]} Kxd8 {[%emt 0:00:03]} 9. b3 {[%emt 0:03:06]} Ke7 {[%emt 0:01:20]} 10. Bb2 {[%emt 0:00:34]} Nbd7 {[%emt 0:00:33]} 11. Nbd2 {[%emt 0:00:37]} b5 {[%emt 0:03:10]} 12. Be2 {[%emt 0:00:06]} Bb7 {[%emt 0:00:04]} 13. Rfd1 {[%emt 0:01:27]} Rhc8 {[%emt 0:03:17]} 14. Rac1 {[%emt 0:00:50]} g6 {[%emt 0:00:23]} 15. Kf1 {[%emt 0:00:53]} Nd5 {[%emt 0:07:31]} 16. Nd4 {[%emt 0:22:27]} Rc7 {[%emt 0:17:16]} 17. a3 {[%emt 0:05:48]} Rac8 {[%emt 0:06:44]} 18. Bd3 {[%emt 0:01:05]} e5 {[%emt 0:03:33]} 19. N4f3 {[%emt 0:03:24]} f6 {[%emt 0:01:45]} 20. Ke2 {[%emt 0:02:18]} Bb6 {[%emt 0:01:25]} 21. Rxc7 {[%emt 0:03:46]} Rxc7 {[%emt 0:00:06]} 22. Rc1 {[%emt 0:01:25]} Rxc1 {[%emt 0:01:40]} 23. Bxc1 {[%emt 0:00:05]} Nc3+ {[%emt 0:00:03]} 24. Ke1 {[%emt 0:00:32]} e4 {[%emt 0:00:08]} 25. Bb2 {[%emt 0:04:24]} exf3 {[%emt 0:47:06]} 0-1